fUSD/lending_fUSD_20260215
["ID","MTS","AMOUNT","RATE_DAILY","PERIOD"]
[405386065,1771119042501,-567.86519415,0.00040021,5]
[405386066,1771119042513,-622.72,0.00040049,120]
[405386067,1771119042523,-219.0402,0.00040088,30]
[405386068,1771119042533,-248.07,0.00040212,30]
[405386069,1771119042542,-219.0402,0.00040288,30]
[405386070,1771119042552,-166.66,0.00040297,2]
[405386071,1771119042562,-37639.14,0.000403,2]
[405386072,1771119042572,-177.57736903,0.00040301,30]
[405386073,1771119042591,-359.248854,0.00040398,28]
[405386074,1771119042611,-2339.80425514,0.00040434,15]
[405386075,1771119042631,-248.07,0.00040486,30]
[405386076,1771119042640,-219.0402,0.00040488,30]
[405386077,1771119042650,-274.10243531,0.0004059,120]
[405386078,1771119042659,-1000.0,0.00040619,2]
[405386079,1771119042669,-219.0402,0.00040688,30]
[405386080,1771119042678,-166.67,0.00040722,2]
[405386081,1771119042688,-177.57736903,0.0004074,30]
[405386082,1771119042698,-150.00964432,0.0004074,30]
[405386083,1771119042708,-248.1,0.0004076,30]
[405386084,1771119042718,-153.0,0.000408,120]
[405386085,1771119042727,-219.0402,0.00040888,30]
[405386086,1771119042739,-155.0,0.00041,120]
[405386087,1771119042749,-356.31,0.00041,14]
[405386088,1771119042760,-396.23,0.00041,30]
[405386089,1771119042770,-737.96667801,0.00041,30]
[405386090,1771119042779,-150.59,0.00041008,2]
[405386091,1771119042788,-219.0402,0.00041088,30]
[405386092,1771119042798,-600.0,0.00041096,120]
[405386093,1771119042807,-177.57736903,0.00041178,30]
[405386094,1771119042817,-150.0096443,0.00041178,30]
[405386095,1771119042827,-150.00964432,0.00041178,30]
[405386096,1771119042836,-150.00964432,0.00041178,30]
[405386097,1771119042846,-20943.00463366,0.00041288,54]
[405386098,1771119042856,-219.0402,0.00041288,30]
[405386099,1771119042865,-2339.80425514,0.00041321,15]
[405386100,1771119042875,-1029.61,0.000414,120]
[405386101,1771119042884,-1029.61,0.000414,120]
[405386102,1771119042895,-37639.14,0.000414,2]
[405386103,1771119042905,-166.66,0.00041472,2]
[405386104,1771119042914,-219.0402,0.00041488,30]
[405386105,1771119042924,-284.95706405,0.00041488,30]
[405386106,1771119042934,-153.0,0.000416,120]
[405386107,1771119042943,-177.57736903,0.00041644,30]
[405386108,1771119042953,-219.0402,0.00041688,30]
[405386109,1771119042962,-11707.4609195,0.00041886,2]
[405386110,1771119042972,-672.6079685,0.00041886,2]
[405386111,1771119042981,-219.0402,0.00041888,30]
[405386112,1771119042991,-500.0,0.00042,120]
[405386113,1771119043001,-177.57736903,0.00042082,30]
[405386114,1771119043012,-155.0,0.000421,120]
[405386115,1771119043022,-150.0,0.00042121,120]
[405386116,1771119043031,-11037.3971101,0.00042158,120]
[405386117,1771119043040,-2339.80425514,0.00042207,15]
[405386118,1771119043050,-150.0,0.00042325,120]
[405386119,1771119043059,-153.0,0.000424,120]
[405386120,1771119043068,-150.0,0.00042411,120]
[405386121,1771119043078,-269.07766469,0.00042421,15]
[405386122,1771119043087,-500.0,0.00042438,120]
[405386123,1771119043097,-3001.2,0.000425,120]
[405386124,1771119043106,-500.0,0.000425,120]
[405386125,1771119043116,-150.0,0.00042541,120]
[405386126,1771119043126,-787.28,0.00042561,120]
[405386127,1771119043135,-278.09745924,0.00042575,120]
[405386128,1771119043145,-37639.14,0.000426,2]
[405386129,1771119043155,-150.0,0.00042689,120]
[405386130,1771119043164,-1029.61,0.000427,90]
[405386131,1771119043174,-1029.61,0.000427,120]
[405386132,1771119043183,-151.0,0.000427,120]
[405386133,1771119043193,-151.0,0.000427,120]
[405386134,1771119043202,-151.0,0.000427,120]
[405386135,1771119043212,-151.0,0.000427,10]
[405386136,1771119043222,-150.0,0.00042798,120]
[405386137,1771119043231,-166.67,0.00042845,2]
[405386138,1771119043242,-173.24958518,0.000429,120]
[405386139,1771119043252,-161.13677,0.00042927,120]
[405386140,1771119043262,-169.30555,0.00042934,120]
[405386141,1771119043272,-169.30555,0.00042934,120]
[405386142,1771119043282,-169.30555,0.00042934,120]
[405386143,1771119043291,-169.30555,0.00042934,120]
[405386144,1771119043300,-4280.0,0.00042934,30]
[405386145,1771119043310,-151.0,0.00042937,120]
[405386146,1771119043320,-151.0,0.00042937,120]
[405386147,1771119043330,-151.0,0.00042937,120]
[405386148,1771119043339,-151.0,0.00042937,120]
[405386149,1771119043348,-211.799872,0.00042937,120]
[405386150,1771119043358,-151.0,0.00042937,120]
[405386151,1771119043367,-2612.2876299,0.00042937,2]
[405386152,1771119043377,-150.0791237,0.00042937,2]
[405386153,1771119043386,-269.07766469,0.00042941,15]
[405386154,1771119043397,-10000.0,0.00043,120]
[405386155,1771119043407,-500.0,0.00043,120]
[405386156,1771119043416,-200.0,0.00043068,120]
[405386157,1771119043426,-2339.80425514,0.00043094,15]
[405386158,1771119043436,-155.0,0.000431,120]
[405386159,1771119043446,-153.0,0.000431,120]
[405386160,1771119043456,-150.0,0.0004311,120]
[405386161,1771119043465,-150.0,0.00043285,120]
[405386162,1771119043474,-1800.0,0.000433,15]
[405386163,1771119043483,-2000.0,0.000433,2]
[405386164,1771119043493,-4280.0,0.00043377,30]
[405386165,1771119043504,-300.0,0.000434,15]
[405386166,1771119043514,-269.07766469,0.00043461,15]
[405386167,1771119043524,-150.0,0.00043461,120]
[405386168,1771119043533,-300.0,0.000435,15]
[405386169,1771119043543,-500.0,0.000435,120]
[405386170,1771119043553,-150.0,0.00043531,120]
[405386171,1771119043564,-150.0,0.00043563,120]
[405386173,1771119043606,-300.0,0.000436,15]
[405386174,1771119043616,-150.0,0.00043687,120]
[405386175,1771119043627,-397.53809515,0.00043699,2]
[405386176,1771119043637,-300.0,0.000437,15]
[405386177,1771119043647,-37639.14,0.000437,2]
[405386178,1771119043658,-5362.8444,0.00043735,2]
[405386179,1771119043668,-5000.0,0.00043735,120]
[405386180,1771119043678,-150.0,0.00043746,120]
[405386181,1771119043687,-150.0,0.00043787,120]
[405386182,1771119043697,-150.0,0.00043795,120]
[405386183,1771119043707,-565.77,0.000438,120]
[405386184,1771119043718,-396.23,0.000438,30]
[405386185,1771119043728,-967.0,0.000438,15]
[405386186,1771119043738,-4280.0,0.00043819,30]
[405386190,1771119043747,-262.40872358,0.00043825,7]
[405386192,1771119043761,-500.0,0.00043835,120]
[405386195,1771119043770,-500.0,0.00043835,120]
[405386198,1771119043779,-500.0,0.00043835,120]
[405386200,1771119043791,-500.0,0.00043835,120]
[405386201,1771119043800,-594.05674421,0.00043835,120]
[405386202,1771119043810,-500.0,0.00043835,120]
[405386203,1771119043820,-500.0,0.00043835,120]
[405386204,1771119043830,-500.0,0.00043835,120]
[405386205,1771119043840,-500.0,0.00043835,120]
[405386206,1771119043849,-500.0,0.00043835,120]
[405386207,1771119043859,-500.0,0.00043835,120]
[405386208,1771119043869,-500.0,0.00043835,120]
[405386209,1771119043880,-500.0,0.00043835,120]
[405386210,1771119043891,-500.0,0.00043835,120]
[405386211,1771119043902,-500.0,0.00043835,120]
[405386212,1771119043912,-500.0,0.00043835,120]
[405386213,1771119043922,-500.0,0.00043835,120]
[405386214,1771119043931,-500.0,0.00043835,120]
[405386215,1771119043940,-500.0,0.00043835,120]
[405386216,1771119043950,-502.63409843,0.00043835,120]
[405386217,1771119043959,-500.0,0.00043835,120]
[405386218,1771119043968,-500.0,0.00043835,120]
[405386219,1771119043978,-500.0,0.00043835,120]
[405386220,1771119043987,-500.0,0.00043835,120]
[405386221,1771119043997,-500.0,0.00043835,120]
[405386222,1771119044009,-500.0,0.00043835,120]
[405386223,1771119044018,-480.31679996,0.00043835,120]
[405386224,1771119044027,-500.0,0.00043835,120]
[405386225,1771119044037,-500.0,0.00043835,120]
[405386226,1771119044046,-500.0,0.00043835,120]
[405386227,1771119044055,-500.0,0.00043835,120]
[405386228,1771119044065,-500.0,0.00043835,120]
[405386229,1771119044074,-534.55532533,0.00043835,120]
[405386230,1771119044084,-500.0,0.00043835,120]
[405386231,1771119044093,-500.0,0.00043835,120]
[405386232,1771119044103,-500.0,0.00043835,120]
[405386233,1771119044112,-500.0,0.00043835,120]
[405386234,1771119044122,-452.31279142,0.00043835,120]
[405386235,1771119044131,-389.45319302,0.00043835,2]
[405386236,1771119044141,-500.0,0.00043835,120]
[405386237,1771119044151,-500.0,0.00043835,120]
[405386238,1771119044166,-500.0,0.00043835,120]
[405386239,1771119044176,-500.0,0.00043835,120]
[405386240,1771119044185,-300.0,0.00043835,2]
[405386241,1771119044195,-300.0,0.00043835,2]
[405386242,1771119044206,-250.26395675,0.00043835,2]
[405386243,1771119044216,-500.0,0.00043835,120]
[405386244,1771119044226,-500.0,0.00043835,120]
[405386245,1771119044235,-500.0,0.00043835,120]
[405386246,1771119044245,-500.0,0.00043835,120]
[405386247,1771119044257,-500.0,0.00043835,120]
[405386248,1771119044267,-358.91414555,0.00043835,120]
[405386249,1771119044276,-500.0,0.00043835,120]
[405386250,1771119044285,-500.0,0.00043835,120]
[405386251,1771119044298,-500.0,0.00043835,120]
[405386252,1771119044318,-500.0,0.00043835,120]
[405386253,1771119044330,-508.80444855,0.00043835,120]
[405386254,1771119044341,-500.0,0.00043835,120]
[405386255,1771119044362,-500.0,0.00043835,120]
[405386256,1771119044371,-500.0,0.00043835,120]
[405386257,1771119044383,-436.66479084,0.00043835,120]
[405386258,1771119044400,-604.31629343,0.00043835,120]
[405386259,1771119044410,-500.0,0.00043835,120]
[405386260,1771119044419,-500.0,0.00043835,120]
[405386261,1771119044429,-230.53927252,0.00043835,120]
[405386262,1771119044446,-500.0,0.00043835,120]
[405386263,1771119044458,-500.0,0.00043835,120]
[405386264,1771119044470,-500.0,0.00043835,120]
[405386265,1771119044480,-500.0,0.00043835,120]
[405386266,1771119044493,-500.0,0.00043835,120]
[405386267,1771119044506,-500.0,0.00043835,120]
[405386268,1771119044515,-500.0,0.00043835,120]
[405386269,1771119044528,-500.0,0.00043835,120]
[405386270,1771119044540,-500.0,0.00043835,120]
[405386271,1771119044553,-500.0,0.00043835,120]
[405386272,1771119044563,-500.0,0.00043835,120]
[405386273,1771119044575,-417.88072395,0.00043835,120]
[405386274,1771119044591,-500.0,0.00043835,120]
[405386275,1771119044604,-500.0,0.00043835,120]
[405386276,1771119044616,-500.0,0.00043835,120]
[405386277,1771119044632,-500.0,0.00043835,120]
[405386278,1771119044642,-500.0,0.00043835,120]
[405386279,1771119044655,-500.0,0.00043835,120]
[405386280,1771119044673,-500.0,0.00043835,120]
[405386281,1771119044685,-500.0,0.00043835,120]
[405386282,1771119044696,-500.0,0.00043835,120]
[405386283,1771119044706,-500.0,0.00043835,120]
[405386284,1771119044726,-500.0,0.00043835,120]
[405386285,1771119044745,-500.0,0.00043835,120]
[405386286,1771119044758,-500.0,0.00043835,120]
[405386287,1771119044770,-500.0,0.00043835,120]
[405386288,1771119044784,-500.0,0.00043835,120]
[405386289,1771119044795,-500.0,0.00043835,120]
[405386290,1771119044807,-500.0,0.00043835,120]
[405386291,1771119044820,-500.0,0.00043835,120]
[405386292,1771119044832,-500.0,0.00043835,120]
[405386293,1771119044843,-500.0,0.00043835,120]
[405386294,1771119044853,-500.0,0.00043835,60]
[405386295,1771119044864,-500.0,0.00043835,2]
[405386296,1771119044879,-500.0,0.00043835,2]
[405386297,1771119044889,-500.0,0.00043835,2]
[405386298,1771119044901,-500.0,0.00043835,2]
[405386299,1771119044912,-500.0,0.00043835,120]
[405386300,1771119044924,-500.0,0.00043835,120]
[405386301,1771119044936,-500.0,0.00043835,120]
[405386302,1771119044946,-500.0,0.00043835,120]
[405386303,1771119044956,-504.39736822,0.00043835,120]
[405386304,1771119044970,-500.0,0.00043835,120]
[405386305,1771119044980,-500.0,0.00043835,120]
[405386306,1771119044991,-224.91215493,0.00043835,120]
[405386307,1771119045004,-500.0,0.00043835,120]
[405386308,1771119045015,-500.0,0.00043835,120]
[405386309,1771119045026,-500.0,0.00043835,120]
[405386310,1771119045040,-500.0,0.00043835,120]
[405386311,1771119045055,-500.0,0.00043835,120]
[405386312,1771119045067,-500.0,0.00043835,120]
[405386313,1771119045080,-332.1450879,0.00043835,120]
[405386314,1771119045091,-500.0,0.00043835,120]
[405386315,1771119045104,-500.0,0.00043835,120]
[405386316,1771119045120,-500.0,0.00043835,120]
[405386317,1771119045135,-500.0,0.00043835,120]
[405386318,1771119045148,-500.0,0.00043835,120]
[405386319,1771119045161,-613.98339896,0.00043835,120]
[405386320,1771119045174,-151.0,0.00043835,120]
[405386321,1771119045187,-151.0,0.00043835,120]
[405386322,1771119045197,-151.0,0.00043835,120]
[405386323,1771119045209,-151.0,0.00043835,120]
[405386324,1771119045222,-151.0,0.00043835,120]
[405386325,1771119045232,-500.0,0.00043835,120]
[405386326,1771119045242,-248.281195,0.00043835,120]
[405386327,1771119045253,-500.0,0.00043835,60]
[405386328,1771119045262,-500.0,0.00043835,120]
[405386329,1771119045272,-623.18221027,0.00043835,60]
[405386330,1771119045282,-500.0,0.00043835,120]
[405386331,1771119045291,-500.0,0.00043835,120]
[405386332,1771119045300,-500.0,0.00043835,120]
[405386333,1771119045310,-500.0,0.00043835,120]
[405386334,1771119045319,-500.0,0.00043835,2]
[405386335,1771119045328,-581.91854861,0.00043835,2]
[405386336,1771119045338,-500.0,0.00043835,120]
[405386337,1771119045347,-500.0,0.00043835,120]
[405386338,1771119045356,-500.0,0.00043835,120]
[405386339,1771119045366,-151.0,0.00043835,120]
[405386340,1771119045375,-207.548259,0.00043835,120]
[405386341,1771119045384,-500.0,0.00043835,120]
[405386342,1771119045393,-500.0,0.00043835,120]
[405386343,1771119045402,-500.0,0.00043835,120]
[405386344,1771119045411,-500.0,0.00043835,90]
[405386345,1771119045420,-500.0,0.00043835,90]
[405386346,1771119045431,-500.0,0.00043835,90]
[405386347,1771119045441,-500.0,0.00043835,120]
[405386348,1771119045451,-500.0,0.00043835,120]
[405386349,1771119045461,-422.35865267,0.00043835,120]
[405386350,1771119045471,-151.0,0.00043835,10]
[405386351,1771119045480,-151.0,0.00043835,10]
[405386352,1771119045490,-502.77929268,0.00043835,120]
[405386353,1771119045499,-151.0,0.00043835,10]
[405386354,1771119045509,-255.44899963,0.00043835,120]
[405386355,1771119045519,-500.0,0.00043835,120]
[405386356,1771119045529,-500.0,0.00043835,120]
[405386357,1771119045540,-500.0,0.00043835,120]
[405386358,1771119045551,-615.95756658,0.00043835,120]
[405386359,1771119045562,-500.0,0.00043835,120]
[405386360,1771119045572,-440.89854411,0.00043835,120]
[405386361,1771119045584,-500.0,0.00043835,120]
[405386362,1771119045597,-152.54720911,0.00043835,120]
[405386363,1771119045607,-500.0,0.00043835,120]
[405386364,1771119045618,-500.0,0.00043835,120]
[405386365,1771119045629,-500.0,0.00043835,120]
[405386366,1771119045639,-500.0,0.00043835,120]
[405386367,1771119045649,-151.0,0.00043835,120]
[405386369,1771119045659,-500.0,0.00043835,120]
[405386371,1771119045670,-500.0,0.00043835,120]
[405386372,1771119045679,-500.0,0.00043835,120]
[405386373,1771119045689,-500.0,0.00043835,120]
[405386374,1771119045699,-500.0,0.00043835,120]
[405386375,1771119045708,-500.0,0.00043835,120]
[405386376,1771119045717,-500.0,0.00043835,120]
[405386377,1771119045726,-500.0,0.00043835,120]
[405386378,1771119045735,-500.0,0.00043835,120]
[405386379,1771119045745,-573.63668647,0.00043835,120]
[405386380,1771119045755,-500.0,0.00043835,120]
[405386381,1771119045765,-500.0,0.00043835,120]
[405386382,1771119045774,-500.0,0.00043835,120]
[405386383,1771119045784,-500.0,0.00043835,120]
[405386384,1771119045793,-524.46577093,0.00043835,120]
[405386385,1771119045805,-500.0,0.00043835,120]
[405386386,1771119045815,-500.0,0.00043835,120]
[405386387,1771119045827,-500.0,0.00043835,120]
[405386388,1771119045837,-500.0,0.00043835,120]
[405386389,1771119045848,-154.58791363,0.00043835,120]
[405386390,1771119045858,-124.92378243,0.00043835,120]
[405386391,1771119045976,-445.87016722,0.00043835,120]
[405386392,1771119045988,-500.0,0.00043835,120]
[405386393,1771119045997,-500.0,0.00043835,120]
[405386394,1771119046007,-500.0,0.00043835,120]
[405386395,1771119046016,-500.0,0.00043835,120]
[405386396,1771119046026,-500.0,0.00043835,120]
[405386397,1771119046036,-421.41825489,0.00043835,120]
[405386398,1771119046046,-169.30555,0.00043835,120]
[405386399,1771119046057,-169.30555,0.00043835,120]
[405386400,1771119046067,-169.30555,0.00043835,120]
[405386401,1771119046077,-169.30555,0.00043835,120]
[405386402,1771119046087,-169.30555,0.00043835,120]
[405386403,1771119046097,-169.30555,0.00043835,120]
[405386404,1771119046106,-169.30555,0.00043835,120]
[405386405,1771119046116,-169.30555,0.00043835,120]
[405386406,1771119046125,-169.30555,0.00043835,120]
[405386407,1771119046134,-169.30555,0.00043835,120]
[405386408,1771119046143,-169.30555,0.00043835,120]
[405386409,1771119046153,-500.0,0.00043835,120]
[405386410,1771119046163,-500.0,0.00043835,120]
[405386411,1771119046173,-169.30555,0.00043835,120]
[405386412,1771119046182,-500.0,0.00043835,120]
[405386413,1771119046191,-169.30555,0.00043835,120]
[405386414,1771119046201,-169.30555,0.00043835,120]
[405386415,1771119046210,-169.30555,0.00043835,120]
[405386416,1771119046221,-169.30554,0.00043835,120]
[405386417,1771119046230,-500.0,0.00043835,120]
[405386418,1771119046240,-500.0,0.00043835,120]
[405386419,1771119046250,-500.0,0.00043835,120]
[405386420,1771119046260,-500.0,0.00043835,120]
[405386421,1771119046269,-549.06096911,0.00043835,120]
[405386422,1771119046279,-500.0,0.00043835,120]
[405386423,1771119046288,-500.0,0.00043835,120]
[405386424,1771119046297,-500.0,0.00043835,120]
[405386425,1771119046306,-500.0,0.00043835,120]
[405386426,1771119046315,-266.06105666,0.00043835,120]
[405386427,1771119046324,-500.0,0.00043835,120]
[405386428,1771119046332,-500.0,0.00043835,120]
[405386429,1771119046341,-500.0,0.00043835,120]
[405386430,1771119046350,-516.30103684,0.00043835,120]
[405386431,1771119046358,-500.0,0.00043835,120]
[405386432,1771119046367,-500.0,0.00043835,120]
[405386433,1771119046376,-500.0,0.00043835,120]
[405386434,1771119046384,-500.0,0.00043835,120]
[405386435,1771119046394,-500.0,0.00043835,120]
[405386436,1771119046402,-500.0,0.00043835,120]
[405386437,1771119046411,-500.0,0.00043835,120]
[405386438,1771119046420,-500.0,0.00043835,120]
[405386439,1771119046431,-264.00946466,0.00043835,120]
[405386440,1771119046441,-500.0,0.00043835,120]
[405386441,1771119046450,-500.0,0.00043835,120]
[405386442,1771119046459,-500.0,0.00043835,120]
[405386443,1771119046469,-500.0,0.00043835,120]
[405386444,1771119046478,-500.0,0.00043835,120]
[405386445,1771119046487,-500.0,0.00043835,120]
[405386446,1771119046497,-500.0,0.00043835,120]
[405386448,1771119046510,-500.29630229,0.00043835,120]
[405386449,1771119046518,-500.0,0.00043835,120]
[405386450,1771119046528,-500.0,0.00043835,120]
[405386451,1771119046536,-500.0,0.00043835,120]
[405386452,1771119046546,-500.0,0.00043835,120]
[405386454,1771119046555,-500.0,0.00043835,120]
[405386456,1771119046564,-500.0,0.00043835,120]
[405386458,1771119046574,-500.0,0.00043835,120]
[405386460,1771119046583,-500.0,0.00043835,120]
[405386462,1771119046595,-500.0,0.00043835,120]
[405386464,1771119046605,-500.0,0.00043835,120]
[405386466,1771119046614,-500.0,0.00043835,120]
[405386468,1771119046624,-500.0,0.00043835,120]
[405386471,1771119046634,-500.0,0.00043835,120]
[405386472,1771119046644,-500.0,0.00043835,120]
[405386474,1771119046653,-500.0,0.00043835,120]
[405386477,1771119046664,-500.0,0.00043835,120]
[405386478,1771119046674,-500.0,0.00043835,120]
[405386480,1771119046683,-500.0,0.00043835,120]
[405386482,1771119046692,-500.0,0.00043835,120]
[405386484,1771119046701,-500.0,0.00043835,120]
[405386486,1771119046710,-500.0,0.00043835,120]
[405386488,1771119046721,-171.91575126,0.00043835,120]
[405386490,1771119046731,-500.0,0.00043835,120]
[405386492,1771119046740,-500.0,0.00043835,120]
[405386494,1771119046749,-500.0,0.00043835,120]
[405386496,1771119046761,-500.0,0.00043835,120]
[405386498,1771119046771,-500.0,0.00043835,120]
[405386500,1771119046779,-500.0,0.00043835,120]
[405386502,1771119046788,-500.0,0.00043835,120]
[405386504,1771119046798,-158.06056935,0.00043835,120]
[405386506,1771119046807,-500.0,0.00043835,120]
[405386508,1771119046816,-500.0,0.00043835,120]
[405386510,1771119046825,-500.0,0.00043835,120]
[405386512,1771119046834,-255.84359,0.00043835,120]
[405386514,1771119046843,-151.0,0.00043835,120]
[405386516,1771119046852,-151.0,0.00043835,120]
[405386518,1771119046862,-151.0,0.00043835,120]
[405386520,1771119046871,-151.0,0.00043835,120]
[405386521,1771119046880,-151.0,0.00043835,120]
[405386522,1771119046889,-151.0,0.00043835,120]
[405386523,1771119046898,-151.0,0.00043835,120]
[405386524,1771119046907,-151.0,0.00043835,120]
[405386525,1771119046916,-151.0,0.00043835,120]
[405386526,1771119046925,-151.0,0.00043835,120]
[405386527,1771119046935,-151.0,0.00043835,120]
[405386528,1771119046944,-151.0,0.00043835,120]
[405386529,1771119046953,-166.012289,0.00043835,120]
[405386530,1771119046962,-500.0,0.00043835,120]
[405386531,1771119046971,-500.0,0.00043835,120]
[405386532,1771119046981,-500.0,0.00043835,120]
[405386533,1771119046990,-500.0,0.00043835,120]
[405386534,1771119046999,-500.0,0.00043835,120]
[405386535,1771119047010,-500.0,0.00043835,120]
[405386536,1771119047019,-500.0,0.00043835,120]
[405386537,1771119047028,-500.0,0.00043835,120]
[405386538,1771119047038,-500.0,0.00043835,120]
[405386539,1771119047047,-500.0,0.00043835,120]
[405386540,1771119047057,-502.59839249,0.00043835,120]
[405386541,1771119047066,-500.0,0.00043835,60]
[405386542,1771119047075,-636.74852687,0.00043835,60]
[405386543,1771119047085,-500.0,0.00043835,120]
[405386544,1771119047094,-500.0,0.00043835,120]
[405386545,1771119047103,-500.0,0.00043835,120]
[405386546,1771119047112,-500.0,0.00043835,120]
[405386547,1771119047122,-500.0,0.00043835,120]
[405386548,1771119047131,-500.0,0.00043835,120]
[405386549,1771119047141,-500.0,0.00043835,120]
[405386550,1771119047150,-500.0,0.00043835,120]
[405386551,1771119047159,-385.43233381,0.00043835,120]
[405386552,1771119047168,-297.49003859,0.00043835,120]
[405386553,1771119047178,-500.0,0.00043835,120]
[405386554,1771119047187,-500.0,0.00043835,120]
[405386555,1771119047196,-500.0,0.00043835,120]
[405386556,1771119047206,-500.0,0.00043835,120]
[405386557,1771119047215,-500.0,0.00043835,120]
[405386558,1771119047224,-500.0,0.00043835,120]
[405386559,1771119047234,-500.0,0.00043835,120]
[405386560,1771119047244,-500.0,0.00043835,120]
[405386561,1771119047253,-500.0,0.00043835,120]
[405386562,1771119047263,-500.0,0.00043835,120]
[405386563,1771119047272,-500.0,0.00043835,120]
[405386564,1771119047281,-382.76119978,0.00043835,120]
[405386565,1771119047291,-500.0,0.00043835,120]
[405386566,1771119047300,-500.0,0.00043835,120]
[405386567,1771119047310,-500.0,0.00043835,120]
[405386568,1771119047319,-245.53283847,0.00043835,120]
[405386569,1771119047337,-254.46716153,0.00043835,120]
[405386570,1771119047346,-447.39538794,0.00043835,120]
[405386571,1771119047356,-500.0,0.00043835,120]
[405386572,1771119047365,-500.0,0.00043835,120]
[405386573,1771119047375,-88.2343229,0.00043835,120]
[405386574,1771119047395,-676.71523048,0.00041096,2]
[405386575,1771119047404,-411.54,0.000422,14]
[405386576,1771119047413,-411.7656771,0.00043835,120]
[405386577,1771119047422,-500.0,0.00043835,120]
[405386578,1771119047432,-500.0,0.00043835,120]
[405386579,1771119047441,-500.0,0.00043835,120]
[405386580,1771119047450,-500.0,0.00043835,120]
[405386581,1771119047460,-500.0,0.00043835,120]
[405386582,1771119047470,-500.0,0.00043835,120]
[405386583,1771119047479,-500.0,0.00043835,120]
[405386584,1771119047490,-545.57790439,0.00043835,120]
[405386585,1771119047499,-500.0,0.00043835,120]
[405386586,1771119047510,-500.0,0.00043835,120]
[405386587,1771119047520,-500.0,0.00043835,120]
[405386588,1771119047530,-500.0,0.00043835,120]
[405386589,1771119047540,-500.0,0.00043835,120]
[405386590,1771119047550,-500.0,0.00043835,120]
[405386591,1771119047560,-637.21970667,0.00043835,120]
[405386592,1771119047570,-500.0,0.00043835,120]
[405386593,1771119047582,-500.0,0.00043835,120]
[405386594,1771119047594,-500.0,0.00043835,120]
[405386595,1771119047603,-500.0,0.00043835,120]
[405386596,1771119047613,-500.0,0.00043835,120]
[405386597,1771119047623,-500.0,0.00043835,120]
[405386598,1771119047632,-500.0,0.00043835,120]
[405386599,1771119047642,-500.0,0.00043835,120]
[405386600,1771119047653,-155.36141767,0.00043835,120]
[405386601,1771119047663,-280.37249641,0.00043835,120]
[405386602,1771119047677,-219.62750359,0.00043835,120]
[405386603,1771119047687,-500.0,0.00043835,120]
[405386604,1771119047697,-500.0,0.00043835,120]
[405386605,1771119047707,-500.0,0.00043835,120]
[405386606,1771119047716,-500.0,0.00043835,120]
[405386607,1771119047725,-500.0,0.00043835,120]
[405386608,1771119047735,-632.60405233,0.00043835,120]
[405386609,1771119047744,-500.0,0.00043835,120]
[405386610,1771119047754,-461.87914048,0.00043835,120]
[405386611,1771119047767,-38.12085952,0.00043835,120]